[Event "75th Argentine Women-ch 2024"]
[Site "Buenos Aires"]
[Date "2024.11.27"]
[Round "7.10"]
[White "Palomares, Lujan"]
[Black "Manzoni, Camila"]
[Result "1-0"]
[ECO "C41"]
[WhiteElo "1633"]
[BlackElo "1521"]
[Annotator "NA RC"]
[PlyCount "109"]
[EventDate "2024.11.21"]
[EventType "swiss"]
[EventCountry "ARG"]
[SourceTitle "playchess.com"]
[Source "ChessBase"]
[SourceQuality "1"]
[TimeControl "5400+30"]

1. e4 {[%emt 0:00:03]} e5 {[%emt 0:00:33]} 2. Nf3 {[%emt 0:00:46]} Nc6 {[%emt 0:00:15]} 3. d4 {[%emt 0:00:30]} d6 {[%emt 0:06:00]} 4. dxe5 {[%emt 0:00:12]} dxe5 {[%emt 0:00:08]} 5. Qxd8+ {[%emt 0:00:22]} Kxd8 {[%emt 0:00:18]} 6. Bb5 {[%emt 0:01:09]} Bd7 {[%emt 1:26:16]} 7. Bxc6 {[%emt 0:03:35]} Bxc6 {[%emt 0:00:00]} 8. Nxe5 {[%emt 0:00:19]} Ke8 {[%emt 0:00:00]} 9. Nxc6 {[%emt 0:00:20]} bxc6 {[%emt 0:00:00]} 10. O-O {[%emt 0:01:23]} Bd6 {[%emt 0:00:00]} 11. Re1 {[%emt 0:00:40]} Be5 {[%emt 0:00:00]} 12. c3 {[%emt 0:00:46]} Ne7 {[%emt 0:00:00]} 13. Nd2 {[%emt 0:06:02]} f6 {[%emt 0:00:00]} 14. Nc4 {[%emt 0:00:51]} Bd6 {[%emt 0:00:00]} 15. Be3 {[%emt 0:08:24]} Kf7 {[%emt 0:00:00]} 16. Rad1 {[%emt 0:00:51]} Rhd8 {[%emt 0:00:00]} 17. f4 {[%emt 0:03:50]} Ng6 {[%emt 0:00:00]} 18. g3 {[%emt 0:00:37]} a6 {[%emt 0:00:00]} 19. Na5 {[%emt 0:00:49]} c5 {[%emt 0:00:00]} 20. Nc6 {[%emt 0:00:28]} Re8 {[%emt 0:00:00]} 21. Bf2 {[%emt 0:04:34]} a5 {[%emt 0:00:00]} 22. e5 {[%emt 0:03:04]} fxe5 {[%emt 0:00:00]} 23. fxe5 {[%emt 0:00:06]} Nxe5 {[%emt 0:00:00]} 24. Nxe5+ {[%emt 1:02:49]} Rxe5 {[%emt 0:00:00]} 25. Rxe5 {[%emt 0:00:00]} Bxe5 {[%emt 0:00:00]} 26. Bxc5 {[%emt 0:00:00]} Re8 {[%emt 0:00:00]} 27. Kf2 {[%emt 0:00:00]} Rb8 {[%emt 0:00:00]} 28. Rd2 {[%emt 0:00:00]} Rb5 {[%emt 0:00:00]} 29. Be3 {[%emt 0:00:00]} Bd6 {[%emt 0:00:00]} 30. Ke2 {[%emt 0:00:00]} Re5 {[%emt 0:00:00]} 31. Kd3 {[%emt 0:00:00]} g5 {[%emt 0:00:00]} 32. Bd4 {[%emt 0:00:00]} Rd5 {[%emt 0:00:00]} 33. Kc4 {[%emt 0:00:00]} c6 {[%emt 0:00:00]} 34. a4 {[%emt 0:00:00]} Ke6 {[%emt 0:00:00]} 35. Re2+ {[%emt 0:00:00]} Kd7 {[%emt 0:00:00]} 36. b4 {[%emt 0:00:00]} Rf5 {[%emt 0:00:00]} 37. Bb6 {[%emt 0:00:00]} axb4 {[%emt 0:00:00]} 38. cxb4 {[%emt 0:00:00]} Rf7 {[%emt 0:00:00]} 39. a5 {[%emt 0:00:00]} Rf8 {[%emt 0:00:00]} 40. Rd2 {[%emt 0:00:00]} Re8 {[%emt 0:00:00]} 41. Bc5 {[%emt 0:00:00]} Re4+ {[%emt 0:00:00]} 42. Kb3 {[%emt 0:00:00]} Re6 {[%emt 0:00:00]} 43. a6 {[%emt 0:00:00]} Kc7 {[%emt 0:00:00]} 44. Rxd6 {[%emt 0:00:00]} Rxd6 {[%emt 0:00:00]} 45. Bxd6+ {[%emt 0:00:00]} Kb6 {[%emt 0:00:00]} 46. Kc4 {[%emt 0:00:00]} Kxa6 {[%emt 0:00:00]} 47. Kd4 {[%emt 0:00:00]} Kb7 {[%emt 0:00:00]} 48. Ke5 {[%emt 0:00:00]} Kc8 {[%emt 0:00:00]} 49. Kf5 {[%emt 0:00:00]} Kd7 {[%emt 0:00:00]} 50. Bc5 {[%emt 0:00:00]} g4 {[%emt 0:00:00]} 51. Kxg4 {[%emt 0:00:00]} Ke8 {[%emt 0:00:00]} 52. Kf5 {[%emt 0:00:00]} Kf7 {[%emt 0:00:00]} 53. g4 {[%emt 0:00:00]} Kg8 {[%emt 0:00:00]} 54. Ke6 {[%emt 0:00:00]} Kg7 {[%emt 0:00:00]} 55. Kd6 {[%emt 0:00:00]} 1-0